bitfinex/quotes_SOLUSD_20240616
["timestamp","ask_amount","ask_price","bid_price","bid_amount"]
[1718541642774,0.51,145.01,144.99,0.8663393]
[1718541643670,0.17,145.0,144.99,0.8663393]
[1718541649776,0.34,145.0,144.99,0.8663393]
[1718541649979,0.68,145.0,144.99,0.8663393]
[1718541651385,3.2317,145.0,144.99,0.8663393]
[1718541651782,0.68,145.0,144.99,0.8663393]
[1718541655764,3.2317,145.0,144.99,0.8663393]
[1718541655959,0.68,145.0,144.99,0.8663393]
[1718541657887,0.17,144.98,144.95,0.23590613]
[1718541658095,0.17,144.98,144.86,11.5495]
[1718541658096,0.17,144.96,144.86,11.5495]
[1718541658302,0.34,144.96,144.91,2.5532]
[1718541658594,0.17,144.94,144.91,2.5532]
[1718541658765,0.34,144.94,144.91,2.5532]
[1718541658962,0.34,144.93,144.91,2.5532]
[1718541660170,0.34,144.94,144.86,11.5495]
[1718541660365,0.17,144.94,144.91,7.6596]
[1718541660972,0.17,144.94,144.91,2.5531]
[1718541661672,0.17,144.95,144.91,7.6596]
[1718541661871,0.34,144.95,144.91,7.6596]
[1718541662071,0.17,144.95,144.91,7.6596]
[1718541662270,0.17,144.95,144.92,2.553]
[1718541662563,0.51,144.96,144.92,2.553]
[1718541663417,0.51,144.96,144.91,2.5531]
[1718541664567,0.17,144.95,144.9,2.5533]
[1718541666187,0.17,144.95,144.93,2.5528]
[1718541666380,0.51,144.96,144.92,2.553]
[1718541667404,0.51,144.96,144.89,2.78950382]
[1718541667627,0.17,144.94,144.89,0.23600382]
[1718541667778,3.0627,144.94,144.89,2.78950382]
[1718541668109,0.51,144.94,144.89,2.78950382]
[1718541668423,0.51,144.94,144.9,2.5534]
[1718541668611,0.17,144.93,144.89,2.78950382]
[1718541669102,0.51,144.93,144.89,2.78950382]
[1718541669327,0.51,144.93,144.9,2.5534]
[1718541669491,0.34,144.93,144.9,2.5534]
[1718541669687,0.17,144.96,144.91,2.5532]
[1718541669999,8.9479,144.98,144.93,2.5529]
[1718541670178,6.3958,144.98,144.89,0.23600382]
[1718541670377,15.176,144.99,144.95,2.5524]
[1718541670578,15.176,144.99,144.89,20.23600382]
[1718541670775,284.4587,145.02,144.96,2.5523]
[1718541671002,284.4587,145.02,144.89,20.23600382]
[1718541671003,7.6546,145.01,144.95,2.5524]
[1718541671221,7.6554,145.0,144.94,2.5527]
[1718541671393,25.5162,145.01,144.95,2.5525]
[1718541671584,2.5516,145.01,144.96,2.5523]
[1718541671785,2.5516,145.01,144.96,2.5524]
[1718541672611,7.6547,145.01,144.95,2.5524]
[1718541672815,0.17,144.99,144.95,2.5524]
[1718541673384,0.17,144.99,144.94,2.5526]
[1718541673584,2.7219,144.99,144.89,20.23600382]
[1718541673887,0.34,144.98,144.89,20.23600382]
[1718541674093,0.34,144.98,144.93,2.5528]
[1718541674310,0.34,144.98,144.89,20.23600382]
[1718541674311,0.34,144.98,144.94,2.5527]
[1718541677713,0.17,144.99,144.96,2.5523]
[1718541678119,0.34,144.99,144.96,2.5523]
[1718541679114,0.34,144.99,144.94,2.5526]
[1718541679418,0.34,144.99,144.95,2.5526]
[1718541685509,0.34,144.99,144.94,2.5526]
[1718541685717,0.34,144.98,144.95,2.5525]
[1718541686616,0.34,144.98,144.96,2.5524]
[1718541686920,0.34,144.98,144.95,2.5524]
[1718541687126,0.34,144.98,144.89,22.99585682]
[1718541687311,0.34,144.98,144.95,2.5524]
[1718541692640,16.2003,144.98,144.95,2.5524]
[1718541694932,16.2003,144.98,144.96,2.5524]
[1718541695324,16.2003,144.98,144.95,2.5524]
[1718541696024,16.2003,144.98,144.96,2.5524]
[1718541698231,16.2003,144.98,144.89,20.23600382]
[1718541698440,0.17,144.96,144.93,2.5527]
[1718541698635,0.34,144.96,144.93,2.5527]
[1718541698815,0.34,144.95,144.93,2.5527]
[1718541703512,0.17,144.94,144.93,2.5527]
[1718541704020,0.34,144.95,144.93,2.5527]
[1718541706123,0.34,144.95,144.93,2.39837589]
[1718541707857,0.34,144.95,144.92,2.5529]
[1718541708026,0.17,144.95,144.93,2.5528]
[1718541708232,6.5879,144.97,144.94,2.5526]
[1718541708559,6.5879,144.97,144.95,2.5525]
[1718541708728,6.5879,144.97,144.94,2.5526]
[1718541710643,0.34,144.96,144.93,2.5528]
[1718541710952,6.5879,144.97,144.93,2.5528]
[1718541713439,6.5879,144.97,144.89,0.23600382]
[1718541713654,6.5879,144.97,144.92,2.5529]
[1718541715168,6.5879,144.97,144.93,2.5529]
[1718541715458,6.5879,144.97,144.89,0.23600382]
[1718541715632,6.5879,144.97,144.93,2.5529]
[1718541716059,6.5879,144.97,144.92,2.5529]
[1718541719561,6.5879,144.97,144.93,2.5529]
[1718541721269,15.8603,144.98,144.94,2.5526]
[1718541721456,13.22259928,145.01,144.9,0.17]
[1718541721764,6.0919,145.01,144.97,2.5521]
[1718541722175,15.7853,145.0,144.9,20.0]
[1718541722346,15.7853,145.0,144.93,2.5529]
[1718541722347,25.5199,144.99,144.93,2.5529]
[1718541722657,15.7853,145.0,144.9,20.0]
[1718541722863,100.0,145.03,144.9,2.5533]
[1718541722864,15.7853,144.95,144.9,2.5533]
[1718541723243,15.7853,144.95,144.91,2.5533]
[1718541725673,15.7853,144.95,144.92,2.553]
[1718541726542,15.7853,144.95,144.9,2.5534]
[1718541726543,0.68,144.94,144.9,2.5534]
[1718541729042,0.68,144.94,144.9,2.5533]
[1718541730956,3.2328,144.94,144.89,2.78950382]
[1718541731290,0.17,144.92,144.89,0.23600382]
[1718541731451,21.8772,144.91,144.89,0.23600382]
[1718541731652,0.68,144.9,144.89,0.23600382]
[1718541732373,0.68,144.9,144.86,2.554]
[1718541732578,0.68,144.9,144.87,2.554]
[1718541732756,0.68,144.9,144.84,0.8663393]
[1718541732757,18.339,144.89,144.84,3.4207393]
[1718541733107,18.339,144.89,144.84,0.8663393]
[1718541733108,0.17,144.86,144.84,0.8663393]
[1718541733404,13.9246,144.86,144.84,0.8663393]
[1718541733561,0.68,144.85,144.84,0.8663393]
[1718541735180,0.68,144.85,144.73,11.7855]
[1718541735181,15.7853,144.84,144.73,11.7855]
[1718541735386,0.17,144.82,144.73,11.7855]
[1718541735601,0.17,144.82,144.74,0.22101091]
[1718541736299,15.7853,144.84,144.74,0.22101091]
[1718541736593,0.17,144.85,144.75,8.34461394]
[1718541736767,15.7853,144.88,144.77,0.17]
[1718541736963,15.7853,144.88,144.78,0.22094985]
[1718541737463,18.3391,144.88,144.78,0.22094985]
[1718541737663,23.4467,144.88,144.78,0.22094985]
[1718541738064,0.68,144.87,144.78,0.22094985]
[1718541740187,15.7853,144.88,144.78,20.22094985]
[1718541740385,18.3391,144.88,144.78,20.22094985]
[1718541740563,15.7853,144.88,144.78,20.22094985]
[1718541740760,38.7704,144.88,144.78,20.22094985]
[1718541740986,41.3243,144.88,144.78,20.22094985]
[1718541741477,0.34,144.87,144.78,20.22094985]
[1718541741665,0.17,144.85,144.78,20.22094985]
[1718541741862,0.34,144.85,144.78,20.22094985]
[1718541746566,0.34,144.84,144.78,20.22094985]
[1718541746782,0.34,144.84,144.78,0.22094985]
[1718541747881,0.17,144.83,144.78,0.22094985]
[1718541748078,0.34,144.83,144.78,0.22094985]
[1718541748491,0.34,144.84,144.78,0.22094985]
[1718541748668,0.34,144.83,144.78,0.22094985]
[1718541748986,0.34,144.84,144.78,0.22094985]
[1718541750115,0.34,144.84,144.78,0.11806711]
[1718541750405,0.34,144.83,144.78,0.11806711]
[1718541750606,0.34,144.82,144.78,0.11806711]
[1718541750916,0.17,144.83,144.78,0.11806711]
[1718541751206,0.34,144.83,144.78,0.11806711]
[1718541752304,0.34,144.83,144.8,2.5552]
[1718541753196,0.34,144.82,144.78,2.67346711]
[1718541753527,0.17,144.81,144.77,2.5556]
[1718541753680,0.17,144.8,144.74,0.2150816]
[1718541753882,0.34,144.81,144.78,2.5555]
[1718541754078,0.34,144.81,144.77,2.5556]
[1718541754390,0.17,144.8,144.77,2.5557]
[1718541754593,0.34,144.8,144.77,2.5557]
[1718541754794,0.34,144.8,144.76,2.5558]
[1718541755000,0.34,144.8,144.77,2.5557]
[1718541755589,0.34,144.8,144.78,2.5555]
[1718541755980,0.34,144.8,144.74,0.2150816]
[1718541756182,0.34,144.8,144.77,2.5557]
[1718541756918,0.17,144.79,144.76,2.5558]
[1718541757090,0.17,144.79,144.77,2.5557]
[1718541757409,0.17,144.81,144.77,2.5556]
[1718541757585,0.68,144.81,144.78,2.5555]
[1718541758315,0.51,144.81,144.79,2.5553]
[1718541758487,15.9669,144.82,144.79,2.5553]
[1718541758903,15.9669,144.82,144.78,2.5554]
[1718541759215,0.17,144.81,144.78,2.5554]
[1718541760209,0.17,144.81,144.79,2.5553]
[1718541761093,0.51,144.83,144.74,0.2150816]
[1718541761303,0.34,144.83,144.81,2.5549]
[1718541761510,0.17,144.83,144.8,2.5551]
[1718541762934,2.7247,144.83,144.78,2.5555]
[1718541763230,0.51,144.82,144.79,2.5554]
[1718541763393,0.34,144.82,144.79,2.5554]
[1718541766315,0.34,144.82,144.78,2.5554]
[1718541767100,0.17,144.8,144.74,20.2150816]
[1718541767412,0.68,144.8,144.76,2.5558]
[1718541767609,0.68,144.8,144.77,2.5557]
[1718541768597,0.68,144.8,144.77,2.5556]
[1718541773025,0.68,144.8,144.78,2.5555]
[1718541774227,15.6649,144.81,144.8,2.5552]
[1718541774412,15.6649,144.81,144.79,2.5553]
[1718541776421,0.17,144.84,144.74,0.2150816]
[1718541776641,0.68,144.84,144.8,2.555]
[1718541778618,3.2345,144.84,144.79,2.5553]
[1718541779309,3.2345,144.84,144.74,20.2150816]
[1718541779310,2.5548,144.83,144.78,2.5555]
[1718541779517,0.68,144.82,144.79,2.5554]
[1718541779720,0.68,144.82,144.78,2.5554]
[1718541779922,0.68,144.82,144.79,2.5554]
[1718541781832,0.51,144.82,144.79,2.5554]
[1718541782134,22.2564,144.85,144.76,6.3049]
[1718541782347,22.2564,144.85,144.81,2.5549]
[1718541784422,22.2564,144.85,144.76,6.3049]
[1718541785232,22.2564,144.85,144.74,20.2150816]
[1718541785418,22.2564,144.85,144.75,0.34]
[1718541788246,22.2564,144.85,144.75,0.17]
[1718541788544,22.2564,144.85,144.75,0.34]
[1718541790545,22.2564,144.85,144.75,8.34461394]
[1718541790861,22.2564,144.85,144.76,20.0]
[1718541791095,24.8107,144.85,144.76,20.0]
[1718541791230,22.2564,144.85,144.76,20.0]
[1718541794240,0.17,144.84,144.76,20.0]
[1718541794437,8.3436,144.84,144.76,20.0]
[1718541794644,16.0072,144.84,144.74,20.2150816]
[1718541795135,8.3436,144.84,144.74,20.2150816]
[1718541795336,3.2346,144.84,144.79,2.5553]
[1718541795540,0.68,144.84,144.74,20.2150816]
[1718541795753,0.17,144.82,144.78,2.5555]
[1718541795939,0.68,144.82,144.78,2.5555]
[1718541796253,16.3015,144.81,144.78,2.5555]
[1718541796552,16.3015,144.81,144.77,2.5556]
[1718541796852,16.3015,144.81,144.74,0.2150816]
[1718541797053,16.3015,144.81,144.8,2.5552]
[1718541799034,16.3015,144.81,144.79,2.5552]
[1718541799234,16.3015,144.81,144.8,2.5552]
[1718541802533,16.3015,144.81,144.79,2.5552]
[1718541802731,16.3015,144.81,144.8,2.5552]
[1718541803157,16.3015,144.81,144.79,2.5552]
[1718541807561,16.3015,144.81,144.74,0.2150816]
[1718541807973,16.3015,144.81,144.8,2.5552]
[1718541809997,16.3015,144.81,144.79,2.5552]
[1718541810180,16.3015,144.81,144.74,0.2150816]
[1718541810181,16.3015,144.81,144.8,2.5552]
[1718541813589,22.4254,144.85,144.81,2.555]
[1718541814489,22.4254,144.85,144.75,20.0]
[1718541814688,22.4254,144.85,144.76,0.34]
[1718541815888,22.4254,144.85,144.77,0.34]
[1718541818293,22.4254,144.85,144.76,0.34]
[1718541818497,22.4254,144.85,144.75,20.17]
[1718541818713,22.4254,144.85,144.75,20.0]
[1718541819586,22.4254,144.85,144.76,0.17]
[1718541819792,22.4254,144.85,144.76,0.34]
[1718541820396,22.4254,144.85,144.75,28.00461394]
[1718541821207,0.34,144.84,144.75,28.00461394]
[1718541822532,0.34,144.84,144.81,2.555]
[1718541826340,0.34,144.84,144.75,28.00461394]
[1718541826628,22.4254,144.85,144.76,0.17]
[1718541826838,22.4254,144.85,144.76,8.34461394]
[1718541827144,22.4254,144.85,144.77,20.0]
[1718541835533,22.4254,144.85,144.78,0.17]
[1718541835858,22.4254,144.85,144.79,0.17]
[1718541836053,15.8339,144.85,144.79,0.51]
[1718541836262,15.8339,144.85,144.79,20.51]
[1718541837962,15.8339,144.85,144.8,0.17]
[1718541838150,15.8339,144.85,144.8,0.34]
[1718541840066,6.04,144.88,144.8,0.34]
[1718541841576,6.04,144.88,144.8,8.34461394]
[1718541841874,6.04,144.88,144.81,20.0]
[1718541848362,15.3631,144.89,144.81,20.0]
[1718541850270,15.3631,144.89,144.82,0.68]
[1718541850757,6.0891,144.92,144.82,8.68461394]
[1718541850980,6.0891,144.92,144.84,0.17]
[1718541851185,6.0891,144.92,144.84,0.68]
[1718541852380,6.0891,144.92,144.84,0.17]
[1718541855204,6.0891,144.92,144.84,0.34]
[1718541855881,6.0891,144.92,144.83,20.0]
[1718541861719,6.0891,144.92,144.84,0.34]
[1718541862927,15.3631,144.93,144.85,0.17]
[1718541863888,15.3631,144.93,144.84,0.34]
[1718541864097,15.3631,144.93,144.84,0.17]
[1718541864309,15.3631,144.93,144.83,20.0]
[1718541868224,15.3631,144.93,144.84,12.8218]
[1718541868425,15.3631,144.93,144.85,20.51]
[1718541868729,6.3882,144.96,144.85,20.51]
[1718541870098,6.3882,144.96,144.85,26.9985]
[1718541873051,6.29198001,144.96,144.85,26.9985]
[1718541874341,6.29198001,144.96,144.86,0.17]
[1718541880020,6.29198001,144.96,144.85,26.4885]
[1718541880021,0.51,144.95,144.85,26.4885]
[1718541880345,0.17,144.94,144.85,26.4885]
[1718541882150,0.51,144.95,144.85,26.4885]
[1718541884748,0.17,144.94,144.85,26.4885]
[1718541885764,0.51,144.95,144.85,26.4885]
[1718541886339,0.17,144.94,144.85,26.4885]
[1718541890971,7.8283,144.94,144.85,26.4885]
[1718541891170,0.51,144.93,144.85,26.4885]
[1718541891349,0.17,144.92,144.85,26.4885]
[1718541891861,0.17,144.91,144.85,6.4885]
[1718541892059,0.51,144.91,144.84,12.6518]
[1718541892273,0.17,144.9,144.84,12.6518]
[1718541892472,0.51,144.9,144.84,12.6518]
[1718541893069,0.17,144.93,144.84,12.6518]
[1718541893261,20.68,144.93,144.84,12.6518]
[1718541893973,0.68,144.93,144.84,12.6518]
[1718541894969,3.233,144.93,144.84,12.6518]
[1718541895175,23.233,144.93,144.84,12.6518]
[1718541895573,20.68,144.93,144.84,12.6518]
[1718541896980,23.2329,144.93,144.84,12.6518]
[1718541897283,28.3388,144.93,144.84,12.6518]
[1718541897691,28.3388,144.93,144.84,12.55120233]
[1718541897859,23.2329,144.93,144.84,12.55120233]
[1718541898473,28.3388,144.93,144.84,12.55120233]
[1718541898678,0.17,144.91,144.84,12.55120233]
[1718541898883,0.68,144.91,144.84,12.55120233]
[1718541900660,8.34,144.91,144.84,12.55120233]
[1718541900876,8.3399,144.91,144.84,12.55120233]
[1718541901878,0.17,144.89,144.84,12.55120233]
[1718541902068,0.68,144.89,144.84,12.55120233]
[1718541903779,0.34,144.89,144.84,12.55120233]
[1718541903980,16.3016,144.93,144.84,12.55120233]
[1718541903981,0.17,144.92,144.84,12.55120233]
[1718541904284,2.5526,144.95,144.84,12.55120233]
[1718541904588,29.26428001,144.96,144.84,12.55120233]
[1718541904757,2.5526,144.95,144.84,12.55120233]
[1718541905075,2.5527,144.94,144.84,12.55120233]
[1718541905252,7.8289,144.93,144.84,12.55120233]
[1718541905586,0.17,144.91,144.84,12.55120233]
[1718541910100,2.5527,144.95,144.85,6.313]
[1718541910377,6.29198001,144.96,144.85,6.313]
[1718541910378,7.6574,144.96,144.85,6.313]
[1718541911064,15.3147,144.96,144.85,6.313]
[1718541911266,2.5526,144.95,144.85,6.313]
[1718541911488,0.51,144.94,144.85,6.313]
[1718541912612,0.17,144.94,144.86,12.5512]
[1718541912783,7.6568,144.97,144.87,6.313]
[1718541913387,2.5524,144.96,144.87,6.313]
[1718541913891,7.6572,144.96,144.87,6.313]
[1718541914212,0.51,144.95,144.87,6.313]
[1718541914389,3.0626,144.95,144.87,6.313]
[1718541914783,0.51,144.95,144.87,6.313]
[1718541918209,0.17,144.97,144.88,12.5512]
[1718541918413,0.51,144.96,144.88,12.5512]
[1718541922618,0.34,144.97,144.88,12.5512]
[1718541923312,2.8922,144.97,144.88,12.5512]
[1718541924017,12.7598,144.99,144.9,12.5512]
[1718541924218,2.5518,145.0,144.9,12.5512]
[1718541924615,2.5517,145.0,144.92,12.5512]
[1718541925720,15.3093,145.01,144.92,12.5512]
[1718541926018,2.5517,145.0,144.92,12.5512]
[1718541928314,25.6856,145.01,144.92,12.5512]
[1718541928517,0.17,145.0,144.92,12.5512]
[1718541929622,0.17,144.98,144.92,12.5512]
[1718541929817,0.51,144.98,144.92,12.5512]
[1718541932840,13.2706,144.98,144.92,12.5512]
[1718541933043,0.17,144.97,144.92,12.5512]
[1718541933339,0.17,144.96,144.92,12.5512]
[1718541933834,0.51,144.97,144.92,12.5512]
[1718541934625,0.17,144.96,144.86,0.17]
[1718541934839,0.17,144.96,144.87,12.5512]
[1718541935042,0.51,144.96,144.88,20.0]
[1718541935243,0.51,144.96,144.89,6.1399]
[1718541935944,0.17,144.95,144.89,6.1399]
[1718541936146,0.34,144.95,144.89,6.1399]
[1718541938235,0.17,144.94,144.89,6.1399]
[1718541938448,0.51,144.94,144.89,6.1399]
[1718541938626,0.17,144.93,144.89,6.1399]
[1718541938826,0.51,144.93,144.89,6.1399]
[1718541939028,0.51,144.93,144.89,4.921]
[1718541940134,0.51,144.93,144.87,12.5512]
[1718541941660,0.51,144.93,144.87,12.48413488]
[1718541943928,0.17,144.96,144.87,12.48413488]
[1718541944258,0.17,144.95,144.87,12.48413488]
[1718541944431,0.34,144.95,144.87,12.48413488]
[1718541944966,24.1031,144.99,144.87,12.48413488]
[1718541945250,24.1031,144.99,144.88,20.0]
[1718541945452,29.2069,144.99,144.88,20.0]
[1718541945645,21.5512,144.99,144.88,20.0]
[1718541945824,21.5512,144.99,144.89,6.1538]
[1718541946029,21.5512,144.99,144.9,20.0]
[1718541946843,0.68,144.98,144.9,20.0]
[1718541950337,0.68,144.98,144.87,12.48413488]
[1718541950338,0.17,144.96,144.87,12.48413488]
[1718541950538,0.17,144.96,144.88,20.0]
[1718541950539,0.68,144.96,144.88,20.0]
[1718541951434,3.2324,144.96,144.88,20.0]
[1718541951634,0.68,144.96,144.88,20.0]
[1718541952156,3.2324,144.96,144.88,20.0]
[1718541952469,0.68,144.96,144.87,12.48413488]
[1718541959783,0.17,144.94,144.85,6.1538]
[1718541959957,0.68,144.94,144.86,20.0]
[1718541961777,0.34,144.94,144.86,20.0]
[1718541961983,15.4128,144.95,144.86,20.0]
[1718541962677,0.34,144.94,144.86,20.0]
[1718541963390,0.34,144.94,144.84,20.48881394]
[1718541963561,0.34,144.93,144.84,20.48881394]
[1718541964672,0.34,144.93,144.85,20.0]
[1718541966185,6.3821,144.92,144.85,20.0]
[1718541966570,6.3821,144.92,144.84,8.00461394]
[1718541967087,6.3821,144.92,144.83,7.61668972]
[1718541967291,6.3821,144.92,144.84,20.0]
[1718541967777,6.2121,144.92,144.84,20.0]
[1718541967968,6.2121,144.92,144.82,20.17]
[1718541968165,6.2121,144.92,144.82,28.17461394]
[1718541972187,15.5828,144.91,144.82,28.00461394]
[1718541975626,0.34,144.9,144.82,28.00461394]
[1718541975894,0.17,144.9,144.82,28.00461394]
[1718541976095,15.5828,144.91,144.82,28.00461394]
[1718541981006,15.4128,144.91,144.82,28.00461394]
[1718541985902,15.4128,144.91,144.83,0.17]
[1718541987595,15.4128,144.91,144.83,0.68]
[1718541993236,15.4128,144.91,144.82,28.00461394]
[1718541993397,22.7246,144.9,144.82,28.00461394]
[1718541998215,22.7246,144.9,144.82,20.0]
[1718541998532,16.1351,144.89,144.81,20.0]
[1718542000623,6.1573,144.88,144.81,20.0]
[1718542000831,16.2011,144.87,144.79,8.00461394]
[1718542001035,16.2011,144.85,144.79,8.00461394]
[1718542001211,16.2011,144.85,144.76,7.61668972]
[1718542001413,16.2011,144.85,144.76,21.08278033]
[1718542001636,16.2011,144.85,144.76,15.62130366]
[1718542002565,16.2011,144.85,144.77,20.0]
[1718542004141,16.2011,144.85,144.78,8.68461394]
[1718542004341,16.2011,144.85,144.78,16.30130366]
[1718542004656,16.2011,144.85,144.79,20.0]
[1718542007853,22.3584,144.94,144.8,0.17]
[1718542008053,22.3584,144.94,144.8,16.30130366]
[1718542008054,16.2011,144.92,144.8,16.30130366]
[1718542008253,16.2011,144.92,144.82,0.17]
[1718542008469,16.2011,144.92,144.82,0.68]
[1718542009251,16.2011,144.9,144.82,0.68]
[1718542010275,16.2011,144.9,144.81,20.0]
[1718542011778,16.2011,144.9,144.81,28.00461394]
[1718542020997,16.2011,144.9,144.82,0.51]
[1718542025977,16.2011,144.9,144.83,0.17]
[1718542031098,16.2011,144.9,144.82,0.51]
[1718542032109,16.2011,144.9,144.81,28.00461394]
[1718542033539,16.2011,144.9,144.82,0.51]
[1718542036829,16.2011,144.9,144.83,0.17]
[1718542040344,16.2011,144.9,144.82,0.51]
[1718542040538,21.7392,144.88,144.81,28.00461394]
[1718542040842,15.4405,144.87,144.81,20.0]
[1718542045754,15.4405,144.87,144.82,0.17]
[1718542045921,15.4405,144.87,144.82,0.34]
[1718542048661,15.4405,144.87,144.83,0.34]
[1718542050744,15.4405,144.87,144.82,0.34]
[1718542052272,15.4405,144.87,144.81,20.0]
[1718542058765,15.4405,144.85,144.81,20.0]
[1718542058972,15.4405,144.85,144.79,20.0]
[1718542064474,15.34930716,144.85,144.79,20.0]
[1718542067690,15.34930716,144.85,144.76,5.60584754]
[1718542067691,15.34930716,144.85,144.77,20.17]
[1718542068224,15.34930716,144.85,144.77,0.17]
[1718542068361,15.34930716,144.85,144.77,0.68]
[1718542079788,15.34930716,144.85,144.77,15.85741494]
[1718542079993,15.34930716,144.85,144.78,20.0]
[1718542080383,15.34930716,144.85,144.79,0.17]
[1718542080588,15.34930716,144.85,144.79,0.68]
[1718542082606,15.34930716,144.85,144.79,100.68]
[1718542082807,16.4504,144.89,144.81,0.17]
[1718542082999,16.4504,144.89,144.81,15.85741494]
[1718542083206,16.4504,144.89,144.83,0.17]
[1718542083403,16.4504,144.89,144.83,0.68]
[1718542083992,16.4504,144.89,144.82,20.0]
[1718542085715,16.4504,144.89,144.83,0.51]
[1718542089503,16.4504,144.89,144.83,0.43495311]
[1718542095624,16.4504,144.89,144.84,0.17]
[1718542102836,16.4504,144.89,144.83,0.43495311]
[1718542118347,16.4504,144.89,144.83,1.815282]
[1718542118553,16.4504,144.89,144.83,0.43495311]
[1718542133141,16.4504,144.89,144.83,0.38492185]
[1718542133542,16.4504,144.89,144.83,0.34]
[1718542135643,16.4504,144.89,144.84,0.34]
[1718542146696,6.0698,144.9,144.86,0.17]
[1718542146877,6.4597,144.97,144.86,0.34]
[1718542147076,6.4597,144.97,144.87,0.34]
[1718542147382,6.4597,144.97,144.88,0.17]
[1718542147694,6.4597,144.97,144.88,0.34]
[1718542148469,6.4597,144.97,144.88,30.34]
[1718542148706,6.4597,144.97,144.89,20.0]
[1718542149590,6.4597,144.97,144.89,50.0]
[1718542149786,16.26,144.96,144.89,50.0]
[1718542151766,16.26,144.96,144.9,0.17]
[1718542152000,16.26,144.96,144.9,0.51]
[1718542152302,16.26,144.96,144.9,0.68]
[1718542163990,16.26,144.96,144.91,0.21482928]
[1718542169031,6.4597,144.97,144.91,0.21482928]
[1718542174303,16.5334,144.99,144.91,0.21482928]
[1718542175621,19.0853,144.99,144.91,0.21482928]
[1718542176024,16.5334,144.99,144.91,0.21482928]
[1718542176320,19.0853,144.99,144.91,0.21482928]
[1718542176525,16.5334,144.99,144.91,0.21482928]
[1718542182933,19.0853,144.99,144.91,0.21482928]
[1718542183307,16.5334,144.99,144.91,0.21482928]
[1718542184235,19.0853,144.99,144.91,0.21482928]
[1718542185345,16.5334,144.99,144.91,0.21482928]
[1718542185633,19.0853,144.99,144.91,0.21482928]
[1718542185815,16.5334,144.99,144.91,0.21482928]
[1718542189325,0.34,144.98,144.91,0.21482928]
[1718542191023,16.5334,144.99,144.91,0.21482928]
[1718542199527,0.17,144.98,144.91,0.21482928]
[1718542200246,16.5334,144.99,144.91,0.21482928]
[1718542201235,0.68,145.0,144.91,0.21482928]
[1718542201432,31.9327,145.03,144.92,15.9768]
[1718542201634,0.34,145.02,144.92,15.9768]
[1718542202261,0.34,145.02,144.92,22.1267]
[1718542203058,0.34,145.01,144.92,22.1267]
[1718542205461,7.824,145.02,144.92,22.1267]
[1718542205850,23.0554,145.09,144.95,0.17]
[1718542206050,5.1011,145.07,144.95,20.68]
[1718542206256,7.6519,145.06,144.95,20.68]
[1718542206475,7.652,145.06,144.95,20.68]
[1718542206840,25.5055,145.07,144.95,31.17651647]
[1718542207137,17.8539,145.07,144.95,31.17651647]
[1718542207687,5.1015,145.06,144.95,31.17651647]
[1718542207980,25.5053,145.07,144.95,31.17651647]
[1718542208343,7.6517,145.07,144.95,31.17651647]
[1718542208537,0.68,145.06,144.95,31.17651647]